[Event "*** Titled Tuesday Blitz"]
[Site "Chess.com"]
[Date "2021.04.06"]
[Round "4"]
[White "ellennilssen"]
[Black "nss13"]
[Result "0-1"]
[WhiteElo "2239"]
[BlackElo "2518"]
[TimeControl "180+1"]
[EndTime "10:40:21 PDT"]
[Termination "nss13 won by checkmate"]

1. c4 {[%clk 0:03:00.9]} 1... c6 {[%clk 0:02:59.8]} 2. g3 {[%clk 0:02:55.3]}
2... d5 {[%clk 0:02:59]} 3. Bg2 {[%clk 0:02:55.7]} 3... Nf6 {[%clk 0:02:58.7]}
4. Nf3 {[%clk 0:02:55.9]} 4... Bg4 {[%clk 0:02:57.2]} 5. d4 {[%clk 0:02:52.9]}
5... e6 {[%clk 0:02:53.7]} 6. cxd5 {[%clk 0:02:52.5]} 6... exd5 {[%clk
0:02:53.1]} 7. O-O {[%clk 0:02:52.4]} 7... Nbd7 {[%clk 0:02:49.4]} 8. Nc3 {[%clk
0:02:49.8]} 8... Be7 {[%clk 0:02:44.4]} 9. Bf4 {[%clk 0:02:47.9]} 9... O-O
{[%clk 0:02:43.9]} 10. Ne5 {[%clk 0:02:41.9]} 10... Nxe5 {[%clk 0:02:40.4]} 11.
dxe5 {[%clk 0:02:30.2]} 11... Nd7 {[%clk 0:02:38.4]} 12. Qd2 {[%clk 0:02:23.3]}
12... Nc5 {[%clk 0:02:29.5]} 13. Rad1 {[%clk 0:02:11.7]} 13... Qb6 {[%clk
0:02:18]} 14. Be3 {[%clk 0:02:03.3]} 14... Qa6 {[%clk 0:02:17.8]} 15. f4 {[%clk
0:01:57.2]} 15... Rad8 {[%clk 0:01:58.2]} 16. h3 {[%clk 0:01:43.1]} 16... Bc8
{[%clk 0:01:49.4]} 17. Bd4 {[%clk 0:01:15]} 17... Ne6 {[%clk 0:01:46.8]} 18. f5
{[%clk 0:01:10.6]} 18... Nxd4 {[%clk 0:01:41.8]} 19. Qxd4 {[%clk 0:01:11.5]}
19... f6 {[%clk 0:01:26]} 20. Kh2 {[%clk 0:00:48.2]} 20... fxe5 {[%clk
0:01:25.1]} 21. Qxe5 {[%clk 0:00:49.1]} 21... Bf6 {[%clk 0:01:25]} 22. Qc7
{[%clk 0:00:45.1]} 22... Qb6 {[%clk 0:01:24.5]} 23. Qxb6 {[%clk 0:00:44.2]}
23... axb6 {[%clk 0:01:25.4]} 24. e4 {[%clk 0:00:43.3]} 24... d4 {[%clk
0:01:24.5]} 25. Na4 {[%clk 0:00:42.2]} 25... b5 {[%clk 0:01:22.9]} 26. Nc5
{[%clk 0:00:40.1]} 26... b6 {[%clk 0:01:09.6]} 27. Nd3 {[%clk 0:00:38.6]} 27...
c5 {[%clk 0:01:05.9]} 28. e5 {[%clk 0:00:37.8]} 28... Be7 {[%clk 0:01:05.1]} 29.
Be4 {[%clk 0:00:30.6]} 29... c4 {[%clk 0:01:03.6]} 30. Ne1 {[%clk 0:00:28.3]}
30... d3 {[%clk 0:01:02.4]} 31. g4 {[%clk 0:00:27.7]} 31... Bc5 {[%clk
0:01:01.2]} 32. Nf3 {[%clk 0:00:26.7]} 32... b4 {[%clk 0:00:37.8]} 33. e6 {[%clk
0:00:24.9]} 33... Rfe8 {[%clk 0:00:27]} 34. Ne5 {[%clk 0:00:24.9]} 34... Bd6
{[%clk 0:00:26.8]} 35. Kg2 {[%clk 0:00:15]} 35... Bxe5 {[%clk 0:00:26.6]} 36.
Bc6 {[%clk 0:00:15.9]} 36... Re7 {[%clk 0:00:24.5]} 37. Bb5 {[%clk 0:00:16.2]}
37... Bb7+ {[%clk 0:00:20.1]} 38. Kg1 {[%clk 0:00:16.1]} 38... Bd4+ {[%clk
0:00:18.2]} 39. Kh2 {[%clk 0:00:16.7]} 39... Be5+ {[%clk 0:00:18.5]} 40. Kg1
{[%clk 0:00:16.7]} 40... Rd4 {[%clk 0:00:18.9]} 41. g5 {[%clk 0:00:08.1]} 41...
Bd5 {[%clk 0:00:16.4]} 42. f6 {[%clk 0:00:06.4]} 42... gxf6 {[%clk 0:00:16.2]}
43. gxf6 {[%clk 0:00:07.3]} 43... Rxe6 {[%clk 0:00:15.8]} 44. f7+ {[%clk
0:00:06.5]} 44... Kf8 {[%clk 0:00:16.4]} 45. Be8 {[%clk 0:00:05.9]} 45... Rg6+
{[%clk 0:00:16.2]} 46. Kf2 {[%clk 0:00:06.1]} 46... Rg2+ {[%clk 0:00:14.2]} 47.
Ke3 {[%clk 0:00:06.1]} 47... Re2# {[%clk 0:00:14.1]} 0-1

[Event "*** Titled Tuesday Blitz"]
[Site "Chess.com"]
[Date "2021.04.06"]
[Round "4"]
[White "Spencenzug"]
[Black "BvsN"]
[Result "0-1"]
[WhiteElo "2257"]
[BlackElo "2454"]
[TimeControl "180+1"]
[EndTime "10:40:22 PDT"]
[Termination "BvsN won by resignation"]

1. e4 {[%clk 0:03:00.9]} 1... c5 {[%clk 0:02:59.2]} 2. Nf3 {[%clk 0:03:00.9]}
2... e6 {[%clk 0:02:59.8]} 3. b3 {[%clk 0:03:00.8]} 3... Nc6 {[%clk 0:02:50.5]}
4. Bb2 {[%clk 0:03:00.7]} 4... a6 {[%clk 0:02:51]} 5. g3 {[%clk 0:02:59.8]} 5...
Nf6 {[%clk 0:02:44.3]} 6. e5 {[%clk 0:02:28.7]} 6... Nd5 {[%clk 0:02:41.4]} 7.
c4 {[%clk 0:02:25.4]} 7... Nde7 {[%clk 0:02:36.7]} 8. Bg2 {[%clk 0:02:16.1]}
8... Nf5 {[%clk 0:02:26.9]} 9. O-O {[%clk 0:02:07.1]} 9... Be7 {[%clk
0:02:20.5]} 10. Nc3 {[%clk 0:01:54.4]} 10... O-O {[%clk 0:02:18.3]} 11. Ne4
{[%clk 0:01:54.2]} 11... d5 {[%clk 0:02:11.3]} 12. exd6 {[%clk 0:01:54.2]} 12...
Nxd6 {[%clk 0:02:11.4]} 13. d3 {[%clk 0:01:36.7]} 13... Nf5 {[%clk 0:02:00.5]}
14. Ne5 {[%clk 0:01:27.3]} 14... Ncd4 {[%clk 0:01:41.5]} 15. Re1 {[%clk
0:00:56.8]} 15... Qc7 {[%clk 0:01:37.8]} 16. Nf3 {[%clk 0:00:54.8]} 16... Bd7
{[%clk 0:01:31.7]} 17. Bxd4 {[%clk 0:00:49.2]} 17... Nxd4 {[%clk 0:01:28.5]} 18.
Nxd4 {[%clk 0:00:48.6]} 18... cxd4 {[%clk 0:01:28.8]} 19. c5 {[%clk 0:00:36.2]}
19... Bc6 {[%clk 0:01:13.6]} 20. b4 {[%clk 0:00:26.8]} 20... Rfe8 {[%clk
0:01:04.6]} 21. f4 {[%clk 0:00:20.5]} 21... Rad8 {[%clk 0:00:44.7]} 22. Qb3
{[%clk 0:00:20.4]} 22... Bd5 {[%clk 0:00:44.1]} 23. Qb2 {[%clk 0:00:20.6]} 23...
Qc6 {[%clk 0:00:43.5]} 24. a4 {[%clk 0:00:16.3]} 24... f5 {[%clk 0:00:41.1]} 25.
Ng5 {[%clk 0:00:16.7]} 25... Bxg5 {[%clk 0:00:36.9]} 26. fxg5 {[%clk 0:00:15.3]}
26... e5 {[%clk 0:00:34.4]} 27. Bxd5+ {[%clk 0:00:09]} 27... Qxd5 {[%clk
0:00:34.1]} 28. Rac1 {[%clk 0:00:08.2]} 28... e4 {[%clk 0:00:33.5]} 29. b5
{[%clk 0:00:07.9]} 29... axb5 {[%clk 0:00:30.5]} 30. axb5 {[%clk 0:00:08.8]}
30... e3 {[%clk 0:00:25.2]} 31. c6 {[%clk 0:00:06.9]} 31... bxc6 {[%clk
0:00:25.1]} 32. bxc6 {[%clk 0:00:07.8]} 32... f4 {[%clk 0:00:25.1]} 33. gxf4
{[%clk 0:00:06.9]} 33... Qf3 {[%clk 0:00:21.6]} 34. Qg2 {[%clk 0:00:06.7]} 34...
Qxf4 {[%clk 0:00:20.6]} 35. c7 {[%clk 0:00:06.7]} 35... Rc8 {[%clk 0:00:19.8]}
36. Qg3 {[%clk 0:00:07.3]} 36... Qxg3+ {[%clk 0:00:15.6]} 37. hxg3 {[%clk
0:00:07.5]} 37... Re7 {[%clk 0:00:16.2]} 38. Rc4 {[%clk 0:00:07.8]} 38... Rexc7
{[%clk 0:00:13.3]} 39. Rxd4 {[%clk 0:00:08.3]} 39... Rc1 {[%clk 0:00:11.5]} 40.
Kf1 {[%clk 0:00:08.4]} 40... e2+ {[%clk 0:00:10.5]} 41. Kxe2 {[%clk 0:00:08.1]}
41... Re8+ {[%clk 0:00:10.7]} 42. Kd2 {[%clk 0:00:08.6]} 42... Rexe1 {[%clk
0:00:10.3]} 43. Rd8+ {[%clk 0:00:08.2]} 43... Kf7 {[%clk 0:00:10.7]} 44. g6+
{[%clk 0:00:09.1]} 44... hxg6 {[%clk 0:00:10.7]} 45. Rd7+ {[%clk 0:00:09.7]}
45... Kf6 {[%clk 0:00:10.9]} 46. Rd6+ {[%clk 0:00:09.9]} 46... Kg5 {[%clk
0:00:10.6]} 47. Rd5+ {[%clk 0:00:10.1]} 47... Kg4 {[%clk 0:00:10.6]} 48. Rd6
{[%clk 0:00:10.8]} 48... g5 {[%clk 0:00:10]} 49. Rg6 {[%clk 0:00:10.4]} 49...
Rcd1+ {[%clk 0:00:09.4]} 50. Kc2 {[%clk 0:00:10.4]} 50... Ra1 {[%clk 0:00:07.8]}
51. Rxg7 {[%clk 0:00:10.4]} 51... Rg1 {[%clk 0:00:07.2]} 0-1

[Event "*** Titled Tuesday Blitz"]
[Site "Chess.com"]
[Date "2021.04.06"]
[Round "4"]
[White "ChessWarrior7197"]
[Black "Kildepiotr"]
[Result "0-1"]
[WhiteElo "2906"]
[BlackElo "2668"]
[TimeControl "180+1"]
[EndTime "10:40:24 PDT"]
[Termination "Kildepiotr won by checkmate"]

1. e4 {[%clk 0:03:00.9]} 1... g6 {[%clk 0:02:28.3]} 2. d4 {[%clk 0:02:59.4]}
2... Bg7 {[%clk 0:02:28.6]} 3. Nc3 {[%clk 0:03:00.3]} 3... c6 {[%clk 0:02:28.7]}
4. Nf3 {[%clk 0:02:58.5]} 4... d6 {[%clk 0:02:29]} 5. h3 {[%clk 0:02:59.4]} 5...
Nf6 {[%clk 0:02:29]} 6. Bd3 {[%clk 0:02:57.8]} 6... O-O {[%clk 0:02:28.8]} 7.
O-O {[%clk 0:02:58.7]} 7... Nbd7 {[%clk 0:02:29.2]} 8. a4 {[%clk 0:02:58.8]}
8... e5 {[%clk 0:02:29.4]} 9. dxe5 {[%clk 0:02:57.9]} 9... Nxe5 {[%clk
0:02:29.6]} 10. Nxe5 {[%clk 0:02:58.1]} 10... dxe5 {[%clk 0:02:30.5]} 11. a5
{[%clk 0:02:57.9]} 11... Be6 {[%clk 0:02:28.8]} 12. Be3 {[%clk 0:02:57.8]} 12...
Nd7 {[%clk 0:02:27]} 13. Qe2 {[%clk 0:02:52.5]} 13... b5 {[%clk 0:02:25.3]} 14.
axb6 {[%clk 0:02:47]} 14... axb6 {[%clk 0:02:26.2]} 15. Bc4 {[%clk 0:02:47.5]}
15... Qe7 {[%clk 0:02:23.9]} 16. Bxe6 {[%clk 0:02:40.1]} 16... Qxe6 {[%clk
0:02:23.8]} 17. Ra6 {[%clk 0:02:41]} 17... Rfb8 {[%clk 0:02:10.7]} 18. Rfa1
{[%clk 0:02:38.2]} 18... Rxa6 {[%clk 0:02:10.7]} 19. Qxa6 {[%clk 0:02:37.9]}
19... Bf8 {[%clk 0:02:09.1]} 20. Qa7 {[%clk 0:02:37.3]} 20... Qe8 {[%clk
0:02:03.2]} 21. Rd1 {[%clk 0:02:35.7]} 21... Nc5 {[%clk 0:02:00.6]} 22. h4
{[%clk 0:02:11]} 22... h5 {[%clk 0:01:59.3]} 23. g3 {[%clk 0:02:10.9]} 23... Rb7
{[%clk 0:01:55.8]} 24. Qa2 {[%clk 0:02:06.6]} 24... Rd7 {[%clk 0:01:55.3]} 25.
Rxd7 {[%clk 0:02:04.3]} 25... Qxd7 {[%clk 0:01:56.2]} 26. Qa8 {[%clk 0:02:04.3]}
26... Kg7 {[%clk 0:01:48.8]} 27. Qb8 {[%clk 0:01:58.7]} 27... Bd6 {[%clk
0:01:35.3]} 28. Qxb6 {[%clk 0:01:57]} 28... Ne6 {[%clk 0:01:34.3]} 29. Ne2
{[%clk 0:01:38.8]} 29... Bc7 {[%clk 0:01:32.9]} 30. Qa6 {[%clk 0:01:21.7]} 30...
Qd1+ {[%clk 0:01:32.5]} 31. Kh2 {[%clk 0:01:22.2]} 31... Qxc2 {[%clk 0:01:33.1]}
32. Nc3 {[%clk 0:01:21.7]} 32... Nd4 {[%clk 0:01:22]} 33. Qa7 {[%clk 0:01:07.9]}
33... Qxb2 {[%clk 0:01:03.3]} 34. Qxc7 {[%clk 0:01:05.5]} 34... Nf3+ {[%clk
0:00:54.1]} 35. Kg2 {[%clk 0:01:05.9]} 35... Ne1+ {[%clk 0:00:54.3]} 36. Kf1
{[%clk 0:01:06.5]} 36... Qxc3 {[%clk 0:00:54.5]} 37. Qb8 {[%clk 0:00:52.9]}
37... Nd3 {[%clk 0:00:42]} 38. Qd8 {[%clk 0:00:37.4]} 38... Qe1+ {[%clk
0:00:35.6]} 39. Kg2 {[%clk 0:00:37.5]} 39... Qe2 {[%clk 0:00:36]} 40. Kg1 {[%clk
0:00:26.4]} 40... Qe1+ {[%clk 0:00:34]} 41. Kg2 {[%clk 0:00:25]} 41... Qe2
{[%clk 0:00:34.1]} 42. Bh6+ {[%clk 0:00:07.7]} 42... Kh7 {[%clk 0:00:33.2]} 43.
Be3 {[%clk 0:00:08.6]} 43... Ne1+ {[%clk 0:00:31]} 44. Kg1 {[%clk 0:00:09]}
44... Nf3+ {[%clk 0:00:30.9]} 45. Kg2 {[%clk 0:00:09.4]} 45... Ne1+ {[%clk
0:00:31]} 46. Kg1 {[%clk 0:00:09.8]} 46... Qf3 {[%clk 0:00:23.2]} 47. Kf1 {[%clk
0:00:10.1]} 47... Nc2 {[%clk 0:00:23.1]} 48. Bg5 {[%clk 0:00:08.3]} 48... Nd4
{[%clk 0:00:20.5]} 49. Kg1 {[%clk 0:00:07.7]} 49... Ne2+ {[%clk 0:00:20.4]} 50.
Kf1 {[%clk 0:00:07.3]} 50... Nxg3+ {[%clk 0:00:20.6]} 51. Kg1 {[%clk 0:00:07.5]}
51... Qh1# {[%clk 0:00:20.6]} 0-1

[Event "*** Titled Tuesday Blitz"]
[Site "Chess.com"]
[Date "2021.04.06"]
[Round "4"]
[White "blitzking1729"]
[Black "IljaJoke"]
[Result "1-0"]
[WhiteElo "2622"]
[BlackElo "2484"]
[TimeControl "180+1"]
[EndTime "10:40:24 PDT"]
[Termination "blitzking1729 won on time"]

1. Nf3 {[%clk 0:03:00.9]} 1... d5 {[%clk 0:02:58.9]} 2. c4 {[%clk 0:03:01]} 2...
e6 {[%clk 0:02:57.2]} 3. b3 {[%clk 0:02:59]} 3... c5 {[%clk 0:02:56.9]} 4. Bb2
{[%clk 0:02:58.6]} 4... d4 {[%clk 0:02:56.3]} 5. e3 {[%clk 0:02:57.6]} 5... Nc6
{[%clk 0:02:56]} 6. g3 {[%clk 0:02:56.4]} 6... Nf6 {[%clk 0:02:52.3]} 7. Bg2
{[%clk 0:02:54.5]} 7... e5 {[%clk 0:02:52.2]} 8. exd4 {[%clk 0:02:53.6]} 8...
exd4 {[%clk 0:02:52.5]} 9. O-O {[%clk 0:02:53.1]} 9... Be7 {[%clk 0:02:51.9]}
10. d3 {[%clk 0:02:49.5]} 10... O-O {[%clk 0:02:52]} 11. Na3 {[%clk 0:02:48.4]}
11... h6 {[%clk 0:02:46.1]} 12. Nc2 {[%clk 0:02:46.5]} 12... Bf5 {[%clk
0:02:23.7]} 13. b4 {[%clk 0:02:40.8]} 13... cxb4 {[%clk 0:02:23.7]} 14. Nfxd4
{[%clk 0:02:39.8]} 14... Nxd4 {[%clk 0:02:12.5]} 15. Nxd4 {[%clk 0:02:37.5]}
15... Bg4 {[%clk 0:02:12.6]} 16. Bf3 {[%clk 0:02:25.9]} 16... Qd7 {[%clk
0:01:50.7]} 17. Nb3 {[%clk 0:02:16.6]} 17... Bh3 {[%clk 0:01:45.6]} 18. Re1
{[%clk 0:02:14.9]} 18... Rad8 {[%clk 0:01:36.5]} 19. d4 {[%clk 0:02:11.1]} 19...
b6 {[%clk 0:01:36.8]} 20. d5 {[%clk 0:02:06.4]} 20... a5 {[%clk 0:01:10.7]} 21.
Nd4 {[%clk 0:02:03.2]} 21... Bc5 {[%clk 0:01:10.6]} 22. Nc6 {[%clk 0:02:02.7]}
22... Rde8 {[%clk 0:01:11]} 23. Bxf6 {[%clk 0:01:57.1]} 23... gxf6 {[%clk
0:01:11.9]} 24. Qd2 {[%clk 0:01:56.9]} 24... Qf5 {[%clk 0:01:02.8]} 25. Bg2
{[%clk 0:01:42.3]} 25... Bg4 {[%clk 0:00:41.2]} 26. Nd4 {[%clk 0:01:37.1]} 26...
Qh5 {[%clk 0:00:35.3]} 27. Qf4 {[%clk 0:01:30.2]} 27... Kg7 {[%clk 0:00:31.1]}
28. Bf3 {[%clk 0:01:10.4]} 28... Bxf3 {[%clk 0:00:26.6]} 29. Nxf3 {[%clk
0:01:08.7]} 29... a4 {[%clk 0:00:16.5]} 30. Kg2 {[%clk 0:01:06.9]} 30... b3
{[%clk 0:00:14.3]} 31. axb3 {[%clk 0:01:05.3]} 31... axb3 {[%clk 0:00:15.2]} 32.
Rab1 {[%clk 0:01:05.1]} 32... Rxe1 {[%clk 0:00:14.3]} 33. Nxe1 {[%clk
0:01:04.9]} 33... Re8 {[%clk 0:00:12.4]} 34. Nd3 {[%clk 0:01:04.9]} 34... Qg6
{[%clk 0:00:11.4]} 35. Rxb3 {[%clk 0:00:59.6]} 35... Qe4+ {[%clk 0:00:10.5]} 36.
Qxe4 {[%clk 0:00:59]} 36... Rxe4 {[%clk 0:00:11.4]} 37. Rc3 {[%clk 0:00:52.7]}
37... Kf8 {[%clk 0:00:10.8]} 38. Kf3 {[%clk 0:00:51.7]} 38... Rd4 {[%clk
0:00:07.5]} 39. Nf4 {[%clk 0:00:39.2]} 39... Ke7 {[%clk 0:00:06.4]} 40. Rc2
{[%clk 0:00:37.5]} 40... Kd6 {[%clk 0:00:04.8]} 41. h4 {[%clk 0:00:36.6]} 41...
Rd1 {[%clk 0:00:03]} 42. h5 {[%clk 0:00:33.4]} 42... Rd4 {[%clk 0:00:02.9]} 43.
Ng2 {[%clk 0:00:32.8]} 43... Rd3+ {[%clk 0:00:02.2]} 44. Ke2 {[%clk 0:00:32.2]}
44... Ra3 {[%clk 0:00:02.3]} 45. Nh4 {[%clk 0:00:31.8]} 45... b5 {[%clk
0:00:01.5]} 46. Nf5+ {[%clk 0:00:31.2]} 46... Ke5 {[%clk 0:00:01.4]} 47. Nxh6
{[%clk 0:00:31]} 47... bxc4 {[%clk 0:00:01.9]} 48. Nxf7+ {[%clk 0:00:31]} 48...
Kxd5 {[%clk 0:00:02]} 49. h6 {[%clk 0:00:30.8]} 49... Ra8 {[%clk 0:00:01.3]} 50.
h7 {[%clk 0:00:30.6]} 1-0

[Event "*** Titled Tuesday Blitz"]
[Site "Chess.com"]
[Date "2021.04.06"]
[Round "4"]
[White "dropstoneDP"]
[Black "AlphaHero0"]
[Result "1-0"]
[WhiteElo "2941"]
[BlackElo "2095"]
[TimeControl "180+1"]
[EndTime "10:40:25 PDT"]
[Termination "dropstoneDP won on time"]

1. f4 {[%clk 0:03:00.9]} 1... Nc6 {[%clk 0:02:59.3]} 2. Nf3 {[%clk 0:02:59.2]}
2... d6 {[%clk 0:02:58.8]} 3. d4 {[%clk 0:02:58.6]} 3... Bf5 {[%clk 0:02:54.2]}
4. d5 {[%clk 0:02:57.5]} 4... Nb8 {[%clk 0:02:50]} 5. Nd4 {[%clk 0:02:53.8]}
5... Bg4 {[%clk 0:02:28.4]} 6. h3 {[%clk 0:02:26.5]} 6... Bd7 {[%clk 0:02:27.1]}
7. e4 {[%clk 0:02:23.4]} 7... e5 {[%clk 0:02:12.2]} 8. Nf3 {[%clk 0:02:23.1]}
8... Be7 {[%clk 0:02:12.5]} 9. fxe5 {[%clk 0:02:18.1]} 9... Bh4+ {[%clk
0:02:11.8]} 10. Ke2 {[%clk 0:02:18.5]} 10... dxe5 {[%clk 0:02:11.3]} 11. Nc3
{[%clk 0:02:01.1]} 11... Bg3 {[%clk 0:01:45.6]} 12. Qd3 {[%clk 0:01:38.4]} 12...
Na6 {[%clk 0:01:44.7]} 13. Be3 {[%clk 0:01:12.3]} 13... Nf6 {[%clk 0:01:19.8]}
14. Kd2 {[%clk 0:01:03.7]} 14... Nh5 {[%clk 0:01:19.2]} 15. Ne2 {[%clk
0:00:58.5]} 15... Qe7 {[%clk 0:01:14.4]} 16. Rd1 {[%clk 0:00:45.8]} 16... Nc5
{[%clk 0:00:49.3]} 17. Qc4 {[%clk 0:00:45.9]} 17... b6 {[%clk 0:00:49.3]} 18.
Kc1 {[%clk 0:00:44.4]} 18... Bf4 {[%clk 0:00:44.8]} 19. Nxf4 {[%clk 0:00:43]}
19... exf4 {[%clk 0:00:42.3]} 20. Bxc5 {[%clk 0:00:34.8]} 20... bxc5 {[%clk
0:00:42.1]} 21. Bd3 {[%clk 0:00:30.8]} 21... Rb8 {[%clk 0:00:37.5]} 22. e5
{[%clk 0:00:22.2]} 22... Rb4 {[%clk 0:00:36.7]} 23. Qc3 {[%clk 0:00:18.8]} 23...
Ng3 {[%clk 0:00:35.7]} 24. Rhe1 {[%clk 0:00:18.5]} 24... O-O {[%clk 0:00:35.1]}
25. b3 {[%clk 0:00:11.7]} 25... Nf5 {[%clk 0:00:24.3]} 26. e6 {[%clk 0:00:10.9]}
26... fxe6 {[%clk 0:00:21.7]} 27. dxe6 {[%clk 0:00:11.8]} 27... Bc8 {[%clk
0:00:15]} 28. Bxf5 {[%clk 0:00:09.5]} 28... Rxf5 {[%clk 0:00:14]} 29. Ne5 {[%clk
0:00:09.4]} 29... Bxe6 {[%clk 0:00:12.9]} 30. Nc6 {[%clk 0:00:08.9]} 30... Qf6
{[%clk 0:00:10.2]} 31. Qxf6 {[%clk 0:00:05.3]} 31... Rxf6 {[%clk 0:00:11.1]} 32.
Nxb4 {[%clk 0:00:05.3]} 32... cxb4 {[%clk 0:00:12]} 33. Rd4 {[%clk 0:00:05]}
33... c5 {[%clk 0:00:11]} 34. Rd6 {[%clk 0:00:05.3]} 34... Kf7 {[%clk
0:00:10.4]} 35. Re5 {[%clk 0:00:05]} 35... h6 {[%clk 0:00:08.2]} 36. Ra6 {[%clk
0:00:04.8]} 36... g5 {[%clk 0:00:08.4]} 37. Rxc5 {[%clk 0:00:04]} 37... Kg6
{[%clk 0:00:06.9]} 38. Re5 {[%clk 0:00:04.3]} 38... Bf5 {[%clk 0:00:05.1]} 39.
Rxa7 {[%clk 0:00:02.6]} 39... Rd6 {[%clk 0:00:04.2]} 40. Raa5 {[%clk 0:00:03.1]}
40... Bd7 {[%clk 0:00:02.8]} 41. Rad5 {[%clk 0:00:03.2]} 41... Rxd5 {[%clk
0:00:01.6]} 42. Rxd5 {[%clk 0:00:04.1]} 42... Bc6 {[%clk 0:00:01]} 43. Rd6+
{[%clk 0:00:04.6]} 1-0

[Event "*** Titled Tuesday Blitz"]
[Site "Chess.com"]
[Date "2021.04.06"]
[Round "4"]
[White "Genghis_K"]
[Black "Abund"]
[Result "1/2-1/2"]
[WhiteElo "2937"]
[BlackElo "2749"]
[TimeControl "180+1"]
[EndTime "10:40:26 PDT"]
[Termination "Game drawn - insufficient material"]

1. e4 {[%clk 0:03:00.9]} 1... c5 {[%clk 0:02:59.3]} 2. Nf3 {[%clk 0:02:59.4]}
2... d6 {[%clk 0:02:59.6]} 3. d4 {[%clk 0:03:00]} 3... cxd4 {[%clk 0:03:00.3]}
4. Nxd4 {[%clk 0:03:00.9]} 4... Nf6 {[%clk 0:03:00.4]} 5. Nc3 {[%clk 0:03:00.8]}
5... a6 {[%clk 0:03:00.9]} 6. a3 {[%clk 0:03:01.3]} 6... e5 {[%clk 0:03:00.4]}
7. Nf5 {[%clk 0:03:01.5]} 7... d5 {[%clk 0:03:00.3]} 8. Bg5 {[%clk 0:03:02.1]}
8... d4 {[%clk 0:03:00.2]} 9. Bxf6 {[%clk 0:03:01.1]} 9... gxf6 {[%clk
0:03:00.3]} 10. Na2 {[%clk 0:03:01]} 10... Bxf5 {[%clk 0:02:56.8]} 11. exf5
{[%clk 0:03:01.9]} 11... Qd5 {[%clk 0:02:56.2]} 12. Qd3 {[%clk 0:03:02.1]} 12...
Nd7 {[%clk 0:02:51.4]} 13. Nc3 {[%clk 0:02:58.5]} 13... Qa5 {[%clk 0:02:35.2]}
14. Rd1 {[%clk 0:02:35.6]} 14... Rd8 {[%clk 0:02:15.6]} 15. b4 {[%clk
0:02:31.4]} 15... Bxb4 {[%clk 0:02:15.4]} 16. axb4 {[%clk 0:02:25.8]} 16... Qxb4
{[%clk 0:02:15.9]} 17. Rb1 {[%clk 0:02:26.6]} 17... Qa5 {[%clk 0:02:04.8]} 18.
h4 {[%clk 0:02:25]} 18... Nc5 {[%clk 0:02:02.4]} 19. Qc4 {[%clk 0:02:22.2]}
19... Qxc3+ {[%clk 0:01:59.2]} 20. Qxc3 {[%clk 0:02:17.8]} 20... dxc3 {[%clk
0:01:59.9]} 21. Rh3 {[%clk 0:02:18.7]} 21... Ke7 {[%clk 0:01:26.8]} 22. Rxc3
{[%clk 0:02:18.2]} 22... Rc8 {[%clk 0:01:24.8]} 23. Be2 {[%clk 0:02:11.4]} 23...
Rhd8 {[%clk 0:01:18.5]} 24. g4 {[%clk 0:02:09.3]} 24... h6 {[%clk 0:01:17.5]}
25. Rb6 {[%clk 0:02:06.9]} 25... Rc7 {[%clk 0:01:10.5]} 26. f4 {[%clk
0:02:07.2]} 26... exf4 {[%clk 0:01:07.7]} 27. Rb4 {[%clk 0:02:04.4]} 27... Rdc8
{[%clk 0:00:59.7]} 28. Rxf4 {[%clk 0:02:01.5]} 28... Nd7 {[%clk 0:00:59.5]} 29.
Re3+ {[%clk 0:01:57.1]} 29... Kf8 {[%clk 0:00:59]} 30. Rb4 {[%clk 0:01:57.2]}
30... b5 {[%clk 0:00:57]} 31. Rd4 {[%clk 0:01:55.9]} 31... Ne5 {[%clk
0:00:56.5]} 32. Rd6 {[%clk 0:01:56]} 32... Rc6 {[%clk 0:00:55.8]} 33. Rxc6
{[%clk 0:01:55.8]} 33... Rxc6 {[%clk 0:00:56.3]} 34. Kd2 {[%clk 0:01:56.7]}
34... Nc4+ {[%clk 0:00:53.4]} 35. Bxc4 {[%clk 0:01:56.6]} 35... Rxc4 {[%clk
0:00:54.3]} 36. Ra3 {[%clk 0:01:53.6]} 36... Ra4 {[%clk 0:00:40.8]} 37. Rxa4
{[%clk 0:01:37.6]} 37... bxa4 {[%clk 0:00:41]} 38. Kc3 {[%clk 0:01:38.5]} 38...
Ke7 {[%clk 0:00:36]} 39. Kb4 {[%clk 0:01:39.1]} 39... a3 {[%clk 0:00:31]} 40.
Kxa3 {[%clk 0:01:39.3]} 40... Kd6 {[%clk 0:00:31.4]} 41. Kb4 {[%clk 0:01:38.8]}
41... Kc6 {[%clk 0:00:16.9]} 42. h5 {[%clk 0:01:34.7]} 42... Kb6 {[%clk
0:00:16.4]} 43. Kc4 {[%clk 0:01:34.6]} 43... Kc6 {[%clk 0:00:16]} 44. Kb4 {[%clk
0:01:27.4]} 44... Kb6 {[%clk 0:00:15.9]} 45. Ka4 {[%clk 0:01:24.3]} 45... a5
{[%clk 0:00:11.5]} 46. c3 {[%clk 0:01:13.4]} 46... Ka6 {[%clk 0:00:11.6]} 47.
Ka3 {[%clk 0:01:10.5]} 47... Kb5 {[%clk 0:00:12.5]} 48. Kb3 {[%clk 0:01:11.1]}
48... Kc5 {[%clk 0:00:10.7]} 49. Ka4 {[%clk 0:01:08.1]} 49... Kc4 {[%clk
0:00:08.1]} 50. Kxa5 {[%clk 0:01:07.9]} 50... Kxc3 {[%clk 0:00:08.6]} 51. Kb5
{[%clk 0:01:07.6]} 51... Kd4 {[%clk 0:00:08.7]} 52. Kc6 {[%clk 0:01:04.5]} 52...
Ke5 {[%clk 0:00:09]} 53. Kd7 {[%clk 0:01:02.7]} 53... Kf4 {[%clk 0:00:08.9]} 54.
Ke7 {[%clk 0:01:01.8]} 54... Kxg4 {[%clk 0:00:07.3]} 55. Kxf6 {[%clk 0:00:58.8]}
55... Kf4 {[%clk 0:00:05.9]} 56. Kg7 {[%clk 0:00:54.4]} 56... Kxf5 {[%clk
0:00:02.5]} 57. Kxh6 {[%clk 0:00:55.3]} 57... Kg4 {[%clk 0:00:02.8]} 58. Kg7
{[%clk 0:00:55.5]} 58... Kxh5 {[%clk 0:00:03.6]} 59. Kxf7 {[%clk 0:00:56.1]}
1/2-1/2